fUST/lending_fUST_20250722
["ID","MTS","AMOUNT","RATE_DAILY","PERIOD"]
[373911666,1753150241544,-460.0,0.00017471,2]
[373911668,1753150241553,-591.88,0.00017471,2]
[373911670,1753150241562,-224.49972482,0.00017471,2]
[373911672,1753150241572,-460.0,0.00017471,2]
[373911674,1753150241582,-460.0,0.00017471,2]
[373911676,1753150241592,-130.13098003,0.00017471,2]
[373911678,1753150241605,-330.60084364,0.00017471,2]
[373911680,1753150241615,-460.0,0.00017471,2]
[373911682,1753150241624,-460.0,0.00017471,2]
[373911684,1753150241633,-498.5278796,0.00017471,2]
[373911686,1753150241643,-460.0,0.00017471,2]
[373911688,1753150241652,-1338.73,0.00017471,2]
[373911690,1753150241661,-3057.19,0.00017471,2]
[373911692,1753150241671,-1506.19,0.00017471,2]
[373911694,1753150241680,-462.29036531,0.00017471,2]
[373911696,1753150241690,-460.0,0.00017471,2]
[373911698,1753150241699,-328.201739,0.00017471,2]
[373912155,1753150246341,-1214.69,0.00017369,2]
[373912157,1753150246351,-461.7516091,0.0001737,2]
[373912159,1753150246361,-500.92511957,0.0001747,2]
[373912161,1753150246371,-461.64115122,0.0001747,2]
[373912163,1753150246381,-500.0,0.00017471,2]
[373912165,1753150246391,-131.798261,0.00017471,2]
[373912167,1753150246400,-460.0,0.00017471,2]
[373912169,1753150246410,-460.0,0.00017471,2]
[373912171,1753150246419,-460.0,0.00017471,2]
[373912173,1753150246429,-460.0,0.00017471,2]
[373912175,1753150246439,-460.0,0.00017471,2]
[373912177,1753150246449,-571.92981091,0.00017471,2]
[373912179,1753150246458,-460.0,0.00017471,2]
[373912181,1753150246468,-562.49421695,0.00017471,2]
[373912183,1753150246477,-460.0,0.00017471,2]
[373912185,1753150246487,-460.0,0.00017471,2]
[373912200,1753150246614,-460.0,0.00017471,2]
[373912202,1753150246624,-460.0,0.00017471,2]
[373912204,1753150246634,-460.0,0.00017471,2]
[373912206,1753150246644,-460.0,0.00017471,2]
[373912208,1753150246654,-460.0,0.00017471,2]
[373912210,1753150246663,-460.0,0.00017471,2]
[373912212,1753150246673,-460.0,0.00017471,2]
[373912214,1753150246683,-1165.01,0.00017471,2]
[373912216,1753150246692,-460.0,0.00017471,2]
[373912218,1753150246703,-460.0,0.00017471,2]
[373912220,1753150246713,-462.32322052,0.00017471,2]
[373912222,1753150246722,-460.0,0.00017471,2]
[373912224,1753150246732,-623.11,0.00017471,2]
[373912226,1753150246741,-460.0,0.00017471,2]
[373912228,1753150246750,-462.6173738,0.00017472,2]
[373912230,1753150246760,-460.0,0.00017472,2]
[373912232,1753150246769,-461.85701078,0.00017472,2]
[373912234,1753150246779,-534.02,0.00017472,2]
[373912236,1753150246788,-460.4643994,0.00017472,2]
[373912237,1753150246800,-460.16743312,0.00017472,2]
[373912238,1753150246810,-461.57097204,0.00017472,2]
[373912239,1753150246819,-460.0,0.00017472,2]
[373912240,1753150246829,-288.09457607,0.00017472,2]
[373912241,1753150246839,-461.49204769,0.00017472,2]
[373912242,1753150246848,-460.0,0.00017472,2]
[373912243,1753150246857,-460.0,0.00017472,2]
[373912245,1753150246867,-460.0,0.00017472,2]
[373912247,1753150246878,-460.50460126,0.00017472,2]
[373912249,1753150246888,-460.0,0.00017472,2]
[373912251,1753150246898,-460.48407514,0.00017472,2]
[373912253,1753150246908,-461.12169682,0.00017472,2]
[373912255,1753150246917,-460.0,0.00017472,2]
[373912257,1753150246926,-463.62476328,0.00017472,2]
[373912259,1753150246935,-460.0,0.00017472,2]
[373912261,1753150246945,-466.16420022,0.00017472,2]
[373912263,1753150246954,-460.0,0.00017472,2]
[373912265,1753150246964,-460.0,0.00017472,2]
[373912267,1753150246973,-460.0,0.00017472,2]
[373912269,1753150246982,-460.0,0.00017472,2]
[373912271,1753150246991,-461.94131573,0.00017472,2]
[373912273,1753150247000,-463.63475406,0.00017472,2]
[373912275,1753150247010,-460.0,0.00017472,2]
[373912277,1753150247019,-460.0,0.00017472,2]
[373912279,1753150247028,-500.0,0.00017472,2]
[373912281,1753150247037,-339.23289565,0.00017472,2]
[373912283,1753150247046,-460.0,0.00017472,2]
[373912285,1753150247055,-460.0,0.00017472,2]
[373912287,1753150247067,-461.66879041,0.00017472,2]
[373912289,1753150247078,-460.0,0.00017472,2]
[373912291,1753150247088,-458.55326529,0.00017472,2]
[373912293,1753150247097,-461.40967202,0.00017472,2]
[373912295,1753150247107,-460.0,0.00017472,2]
[373912297,1753150247116,-460.0,0.00017472,2]
[373912299,1753150247126,-460.0,0.00017472,2]
[373912301,1753150247135,-460.0,0.00017472,2]
[373912303,1753150247145,-463.13548257,0.00017472,2]
[373912305,1753150247156,-241.6944688,0.00017472,2]
[373912307,1753150247165,-603.09,0.00017472,2]
[373912309,1753150247176,-461.03884237,0.00017472,2]
[373912311,1753150247186,-462.04341054,0.00017472,2]
[373912313,1753150247195,-460.0,0.00017472,2]
[373912315,1753150247205,-461.83415365,0.00017472,2]
[373912317,1753150247215,-460.0,0.00017472,2]
[373912319,1753150247225,-460.0,0.00017472,2]
[373912321,1753150247234,-460.0,0.00017472,2]
[373912323,1753150247246,-218.22790398,0.00017472,2]
[373915458,1753150309468,2700.75,0.00022575,30]
[373915459,1753150333492,5220.50254439,0.00016352,2]
[373915460,1753150333523,4779.49745561,0.00016352,2]
[373915462,1753150434830,200.0,0.00022921,30]
[373915463,1753150436886,200.0,0.00022921,30]
[373915464,1753150499472,1000.0,0.00024657,120]
[373915469,1753150804111,282.9932001,0.00016351,2]
[373915470,1753150884721,204.964704,0.00013699,2]
[373915472,1753151107672,1363.87,0.00023,90]
[373915475,1753151129648,4732.54464029,0.00016352,2]
[373915476,1753151129694,10000.0,0.00016352,2]
[373915477,1753151129741,10167.45535971,0.00016352,2]
[373915491,1753151327800,10007.69344023,0.0001,2]
[373915493,1753151362665,200.0,0.00022931,30]
[373915494,1753151365040,200.0,0.00022931,30]
[373915531,1753151432336,-1317.98496588,0.00017167,2]
[373915533,1753151432346,-1200.0,0.00017217,2]
[373915535,1753151432356,-1801.98217027,0.00017218,2]
[373915537,1753151432368,-5260.75627113,0.00017218,2]
[373915539,1753151432377,-1200.0,0.00017263,2]
[373915541,1753151432387,-300.0,0.00017263,2]
[373915543,1753151432396,-300.0,0.00017263,2]
[373915545,1753151432405,-460.0,0.00017265,2]
[373915547,1753151432414,-460.0,0.00017265,2]
[373915549,1753151432424,-460.0,0.00017265,2]
[373915551,1753151432433,-640.47,0.00017265,2]
[373915553,1753151432442,-802.77,0.00017265,2]
[373915555,1753151432451,-2500.37,0.00017265,2]
[373915557,1753151432461,-460.0,0.00017265,2]
[373915558,1753151432470,-462.38427311,0.00017265,2]
[373915560,1753151432481,-469.97231051,0.00017265,2]
[373915562,1753151432490,-464.93224777,0.00017265,2]
[373915563,1753151432500,-460.0,0.00017265,2]
[373915564,1753151432510,-460.0,0.00017265,2]
[373915565,1753151432519,-467.17729981,0.00017265,2]
[373915566,1753151432528,-462.26208291,0.00017265,2]
[373915567,1753151432537,-460.0,0.00017265,2]
[373915568,1753151432546,-460.0,0.00017266,2]
[373915569,1753151432555,-460.0,0.00017266,2]
[373915570,1753151432565,-463.14692298,0.00017266,2]
[373915571,1753151432574,-460.0,0.00017266,2]
[373915572,1753151432584,-462.39955965,0.00017266,2]
[373915573,1753151432593,-460.0,0.00017266,2]
[373915574,1753151432603,-461.79428853,0.00017266,2]
[373915575,1753151432612,-460.0,0.00017266,2]
[373915576,1753151432623,-460.0,0.00017266,2]
[373915577,1753151432632,-460.0,0.00017266,2]
[373915578,1753151432642,-460.0,0.00017266,2]
[373915579,1753151432651,-994.62039263,0.00017266,2]
[373915580,1753151432661,-462.38389751,0.00017266,2]
[373915581,1753151432670,-460.0,0.00017266,2]
[373915582,1753151432679,-460.0,0.00017266,2]
[373915583,1753151432689,-460.0,0.00017266,2]
[373915584,1753151432698,-460.0,0.00017266,2]
[373915585,1753151432708,-460.0,0.00017266,2]
[373915586,1753151432717,-460.0,0.00017266,2]
[373915587,1753151432726,-481.52580542,0.00017266,2]
[373915588,1753151432735,-460.0,0.00017266,2]
[373915589,1753151432745,-4446.48,0.00017266,2]
[373915590,1753151432754,-493.51536275,0.00017266,2]
[373915591,1753151432763,-832.14,0.00017266,2]
[373915592,1753151432773,-8020.34,0.00017266,2]
[373915593,1753151432782,-791.71,0.00017266,2]
[373915594,1753151432792,-460.0,0.00017266,2]
[373915595,1753151432801,-460.0,0.00017266,2]
[373915596,1753151432810,-460.0,0.00017266,2]
[373915597,1753151432819,-460.0,0.00017266,2]
[373915598,1753151432829,-4026.79,0.00017266,2]
[373915599,1753151432838,-460.0,0.00017266,2]
[373915600,1753151432848,-783.31,0.00017266,2]
[373915601,1753151432856,-460.0,0.00017266,2]
[373915602,1753151432869,-1891.88,0.00017266,2]
[373915603,1753151432879,-460.0,0.00017266,2]
[373915604,1753151432889,-1021.4,0.00017266,2]
[373915605,1753151432899,-15238.12574917,0.00017266,2]
[373915606,1753151432909,-500.0,0.00017266,2]
[373915607,1753151432918,-14075.19183105,0.00017267,2]
[373915608,1753151432927,-6854.81780986,0.0001727,2]
[373915609,1753151432937,-837.19,0.00017355,3]
[373915610,1753151432946,-1116.2,0.00017356,3]
[373915611,1753151432954,-558.1,0.00017356,3]
[373915612,1753151432964,-279.05,0.00017356,3]
[373915613,1753151432973,-460.0,0.00017358,2]
[373915614,1753151432982,-462.4310117,0.00017358,2]
[373915615,1753151432992,-506.64214284,0.00017358,2]
[373915616,1753151433002,-454.40664214,0.00017358,2]
[373915617,1753151433011,-460.0,0.00017358,2]
[373915618,1753151433020,-557.56822474,0.00017358,2]
[373915619,1753151433031,-462.5562116,0.00017358,2]
[373915620,1753151433041,-461.50530099,0.00017358,2]
[373915621,1753151433051,-462.26756632,0.00017358,2]
[373915622,1753151433060,-462.74039873,0.00017358,2]
[373915623,1753151433070,-354.40531392,0.00017358,2]
[373915624,1753151433081,-460.0,0.00017358,2]
[373915625,1753151433093,-460.0,0.00017358,2]
[373915626,1753151433103,-739.92,0.00017358,2]
[373915627,1753151433113,-4009.82,0.00017358,2]
[373915628,1753151433123,-239.75690095,0.00017359,2]
[373915629,1753151433132,-460.0,0.00017359,2]
[373915630,1753151433143,-351.8608775,0.00017359,2]
[373915631,1753151433152,-462.7532409,0.00017359,2]
[373915632,1753151433163,-460.0,0.00017359,2]
[373915633,1753151433172,-461.88268478,0.00017359,2]
[373915634,1753151433182,-1006.03989663,0.00017359,2]
[373915635,1753151433192,-461.80993138,0.00017359,2]
[373915636,1753151433202,-441.95249539,0.00017359,2]
[373915637,1753151433212,-460.0,0.00017359,2]
[373915638,1753151433221,-461.09049494,0.00017359,2]
[373915639,1753151433231,-460.0,0.00017359,2]
[373915640,1753151433241,-462.97162279,0.00017359,2]
[373915641,1753151433250,-460.0,0.00017359,2]
[373915642,1753151433260,-440.13776685,0.00017359,2]
[373915643,1753151433269,-460.0,0.00017359,2]
[373915644,1753151433278,-460.0,0.00017359,2]
[373915645,1753151433288,-500.0,0.00017359,2]
[373915646,1753151433297,-462.96762355,0.00017359,2]
[373915647,1753151433310,-460.0,0.00017359,2]
[373915648,1753151433325,-460.0,0.00017359,2]
[373915649,1753151433335,-461.3729255,0.00017359,2]
[373915650,1753151433344,-462.7938709,0.00017359,2]
[373915651,1753151433354,-460.0,0.00017359,2]
[373915652,1753151433364,-468.93614632,0.00017359,2]
[373915653,1753151433374,-609.47,0.00017359,2]
[373915654,1753151433383,-460.0,0.00017359,2]
[373915655,1753151433393,-462.38459365,0.00017359,2]
[373915656,1753151433402,-460.0,0.00017359,2]
[373915657,1753151433412,-460.0,0.00017359,2]
[373915658,1753151433421,-460.0,0.00017359,2]
[373915659,1753151433431,-460.0,0.00017359,2]
[373915660,1753151433440,-500.0,0.00017359,2]
[373915661,1753151433450,-460.0,0.00017359,2]
[373915662,1753151433459,-500.0,0.00017359,2]
[373915663,1753151433469,-460.0,0.00017359,2]
[373915664,1753151433479,-460.0,0.00017359,2]
[373915665,1753151433489,-460.0,0.00017359,2]
[373915666,1753151433499,-460.0,0.00017359,2]
[373915667,1753151433508,-460.0,0.00017359,2]
[373915668,1753151433518,-462.4678689,0.00017359,2]
[373915669,1753151433528,-460.0,0.00017359,2]
[373915670,1753151433538,-460.0,0.00017359,2]
[373915671,1753151433550,-460.0,0.00017359,2]
[373915672,1753151433560,-460.0,0.00017359,2]
[373915673,1753151433570,-464.86334862,0.00017359,2]
[373915674,1753151433579,-460.0,0.00017359,2]
[373915675,1753151433589,-424.75925362,0.00017359,2]
[373915676,1753151433598,-460.0,0.00017359,2]
[373915677,1753151433607,-460.0,0.00017359,2]
[373915678,1753151433618,-460.0,0.00017359,2]
[373915679,1753151433630,-460.0,0.00017359,2]
[373915680,1753151433639,-460.0,0.00017359,2]
[373915681,1753151433649,-460.84567358,0.00017359,2]
[373915682,1753151433659,-621.28,0.00017359,2]
[373915683,1753151433669,-460.0,0.00017359,2]
[373915684,1753151433679,-460.0,0.00017359,2]
[373915685,1753151433690,-460.0,0.00017359,2]
[373915686,1753151433699,-460.0,0.00017359,2]
[373915687,1753151433710,-460.0,0.00017359,2]
[373915688,1753151433720,-460.0,0.00017359,2]
[373915689,1753151433731,-460.0,0.00017359,2]
[373915690,1753151433741,-460.0,0.00017359,2]
[373915691,1753151433751,-460.0,0.00017359,2]
[373915692,1753151433761,-460.0,0.00017359,2]
[373915693,1753151433772,-460.0,0.00017359,2]
[373915694,1753151433782,-962.73,0.00017359,2]
[373915695,1753151433792,-460.0,0.00017359,2]
[373915696,1753151433801,-466.14026298,0.00017359,2]
[373915697,1753151433811,-460.0,0.00017359,2]
[373915698,1753151433821,-1224.71,0.00017359,2]
[373915699,1753151433831,-460.0,0.00017359,2]
[373915700,1753151433841,-460.0,0.00017359,2]
[373915701,1753151433852,-502.720942,0.00017359,2]
[373915702,1753151433862,-460.0,0.00017359,2]
[373915703,1753151433874,-461.13877449,0.00017359,2]
[373915704,1753151433884,-680.52,0.00017359,2]
[373915705,1753151433895,-460.0,0.00017359,2]
[373915706,1753151433905,-1132.92,0.00017359,2]
[373915707,1753151433914,-460.0,0.00017359,2]
[373915708,1753151433924,-463.36354086,0.00017359,2]
[373915709,1753151433934,-460.0,0.00017359,2]
[373915710,1753151433943,-861.78,0.00017359,2]
[373915711,1753151433953,-460.0,0.00017359,2]
[373915712,1753151433963,-460.0,0.00017359,2]
[373915713,1753151433972,-460.0,0.00017359,2]
[373915714,1753151433982,-460.0,0.00017359,2]
[373915715,1753151433991,-470.02887544,0.00017359,2]
[373915716,1753151434001,-460.81445119,0.00017359,2]
[373915717,1753151434010,-460.0,0.00017359,2]
[373915718,1753151434019,-460.0,0.00017359,2]
[373915719,1753151434029,-319.97525935,0.00017359,2]
[373915720,1753151434038,-357.50259491,0.00017359,2]
[373915721,1753151434049,-462.07753179,0.00017359,2]
[373915722,1753151434065,-462.83367863,0.00017359,2]
[373915723,1753151434076,-1229.96,0.00017359,2]
[373915724,1753151434089,-504.78120731,0.00017359,2]
[373915725,1753151434099,-460.0,0.00017359,2]
[373915726,1753151434108,-460.0,0.00017359,2]
[373915727,1753151434118,-659.29,0.00017359,2]
[373915728,1753151434130,-460.0,0.00017359,2]
[373915729,1753151434139,-948.2,0.00017359,2]
[373915730,1753151434149,-464.25680606,0.00017359,2]
[373915731,1753151434160,-460.0,0.00017359,2]
[373915732,1753151434169,-460.0,0.00017359,2]
[373915733,1753151434179,-460.0,0.00017359,2]
[373915734,1753151434189,-460.0,0.00017359,2]
[373915735,1753151434198,-1788.45,0.00017359,2]
[373915736,1753151434207,-460.0,0.00017359,2]
[373915737,1753151434217,-460.83031915,0.00017359,2]
[373915738,1753151434229,-460.0,0.00017359,2]
[373915739,1753151434238,-460.0,0.00017359,2]
[373915740,1753151434254,-460.0,0.00017359,2]
[373915741,1753151434282,-460.0,0.00017359,2]
[373915742,1753151434292,-460.0,0.00017359,2]
[373915743,1753151434301,-460.0,0.00017359,2]
[373915744,1753151434311,-1102.67,0.00017359,2]
[373915745,1753151434320,-465.59350485,0.00017359,2]
[373915746,1753151434329,-460.0,0.00017359,2]
[373915747,1753151434338,-460.0,0.00017359,2]
[373915748,1753151434347,-460.0,0.00017359,2]
[373915749,1753151434357,-461.93359898,0.00017359,2]
[373915750,1753151434366,-462.85229205,0.00017359,2]
[373915751,1753151434376,-461.5849914,0.00017359,2]
[373915752,1753151434385,-460.0,0.00017359,2]
[373915753,1753151434394,-460.0,0.00017359,2]
[373915754,1753151434403,-460.0,0.00017365,2]
[373915755,1753151434412,-460.0,0.00017365,2]
[373915756,1753151434421,-510.72945093,0.00017365,2]
[373915757,1753151434430,-431.32816702,0.00017365,2]
[373915758,1753151434440,-500.0,0.00017365,2]
[373915759,1753151434449,-500.0,0.00017365,2]
[373915760,1753151434458,-418.66054375,0.00017365,2]
[373915761,1753151434467,-500.0,0.00017365,2]
[373915762,1753151434476,-516.86926325,0.00017365,2]
[373915763,1753151434485,-357.51880749,0.00017365,2]
[373915764,1753151434494,-443.27153486,0.00017365,2]
[373915765,1753151434503,-500.0,0.00017365,2]
[373915766,1753151434512,-500.0,0.00017365,2]
[373915767,1753151434521,-460.0,0.00017365,2]
[373915768,1753151434530,-586.39,0.00017365,2]
[373915769,1753151434539,-460.0,0.00017366,2]
[373915770,1753151434548,-350.95697727,0.00017366,2]
[373915771,1753151434558,-461.31341217,0.00017366,2]
[373915772,1753151434567,-460.0,0.00017366,2]
[373915773,1753151434576,-460.0,0.00017366,2]
[373915774,1753151434586,-460.0,0.00017366,2]
[373915775,1753151434595,-460.8203038,0.00017366,2]
[373915776,1753151434605,-460.0,0.00017366,2]
[373915777,1753151434614,-462.09998759,0.00017366,2]
[373915778,1753151434626,-461.80860303,0.00017366,2]
[373915779,1753151434635,-460.0,0.00017366,2]
[373915780,1753151434645,-539.9997748,0.00017366,2]
[373915781,1753151434654,-186.12494806,0.00017366,2]
[373915782,1753151434795,-460.0,0.00017366,2]
[373915783,1753151434805,-460.0,0.00017366,2]
[373915784,1753151434815,-460.0,0.00017366,2]
[373915785,1753151434824,-480.32678659,0.00017366,2]
[373915786,1753151434833,-461.64016259,0.00017366,2]
[373915787,1753151434843,-460.0,0.00017366,2]
[373915788,1753151434853,-461.60071993,0.00017366,2]
[373915789,1753151434863,-460.0,0.00017366,2]
[373915790,1753151434875,-461.01298172,0.00017366,2]
[373915791,1753151434886,-460.0,0.00017366,2]
[373915792,1753151434896,-460.0,0.00017366,2]
[373915793,1753151434906,-460.0,0.00017366,2]
[373915794,1753151434917,-439.18322323,0.00017366,2]
[373915795,1753151434927,-460.0,0.00017366,2]
[373915796,1753151434937,-460.0,0.00017366,2]
[373915797,1753151434947,-463.6554268,0.00017366,2]
[373915798,1753151434957,-460.0,0.00017366,2]
[373915799,1753151434967,-461.35242345,0.00017366,2]
[373915800,1753151434977,-463.41389983,0.00017366,2]
[373915801,1753151434987,-460.0,0.00017366,2]
[373915802,1753151434997,-460.0,0.00017366,2]
[373915803,1753151435007,-460.0,0.00017366,2]
[373915804,1753151435017,-460.0,0.00017366,2]
[373915805,1753151435026,-460.0,0.00017366,2]
[373915806,1753151435036,-462.47990594,0.00017366,2]
[373915807,1753151435045,-460.89190463,0.00017366,2]
[373915808,1753151435055,-462.55157068,0.00017366,2]
[373915809,1753151435065,-460.0,0.00017366,2]
[373915810,1753151435075,-460.0,0.00017366,2]
[373915811,1753151435093,-448.0,0.00017366,2]
[373915812,1753151435104,-548.16993642,0.00017366,2]
[373915813,1753151435114,-461.05200265,0.00017366,2]
[373915814,1753151435124,-462.10008331,0.00017366,2]
[373915815,1753151435135,-460.0,0.00017366,2]
[373915816,1753151435145,-460.0,0.00017366,2]
[373915817,1753151435156,-433.51989128,0.00017366,2]
[373915818,1753151435166,-460.0,0.00017366,2]
[373915819,1753151435175,-460.0,0.00017366,2]
[373915820,1753151435184,-460.0,0.00017366,2]
[373915821,1753151435194,-460.0,0.00017366,2]
[373915822,1753151435204,-460.0,0.00017366,2]
[373915823,1753151435213,-460.0,0.00017366,2]
[373915824,1753151435223,-461.13511071,0.00017366,2]
[373915825,1753151435232,-460.0,0.00017366,2]
[373915826,1753151435242,-263.69200459,0.00017366,2]
[373915827,1753151435253,-460.0,0.00017366,2]
[373915828,1753151435263,-461.09431257,0.00017366,2]
[373915829,1753151435275,-461.36015059,0.00017366,2]
[373915830,1753151435285,-461.29961764,0.00017366,2]
[373915831,1753151435295,-460.87747867,0.00017366,2]
[373915832,1753151435305,-461.26990712,0.00017366,2]
[373915833,1753151435315,-460.0,0.00017366,2]
[373915834,1753151435326,-461.67669505,0.00017366,2]
[373915835,1753151435336,-460.0,0.00017366,2]
[373915836,1753151435346,-461.70207426,0.00017366,2]
[373915837,1753151435356,-461.17515138,0.00017366,2]
[373915838,1753151435366,-464.46396701,0.00017366,2]
[373915839,1753151435378,-460.0,0.00017366,2]
[373915840,1753151435388,-462.43716038,0.00017366,2]
[373915841,1753151435398,-460.0,0.00017366,2]
[373915842,1753151435408,-460.0,0.00017366,2]
[373915843,1753151435418,-462.80194748,0.00017366,2]
[373915844,1753151435427,-460.0,0.00017366,2]
[373915845,1753151435437,-462.27055875,0.00017366,2]
[373915846,1753151435447,-420.23730203,0.00017366,2]
[373915847,1753151435457,-460.0,0.00017366,2]
[373915848,1753151435468,-460.0,0.00017366,2]
[373915849,1753151435478,-460.0,0.00017366,2]
[373915850,1753151435489,-460.0,0.00017366,2]
[373915851,1753151435501,-471.39779801,0.00017366,2]
[373915852,1753151435512,-460.0,0.00017366,2]
[373915853,1753151435522,-462.97137402,0.00017366,2]
[373915854,1753151435531,-460.0,0.00017366,2]
[373915855,1753151435540,-461.41842953,0.00017366,2]
[373915856,1753151435549,-460.0,0.00017366,2]
[373915857,1753151435558,-275.23880381,0.00017366,2]
[373915858,1753151435568,-461.55949861,0.00017366,2]
[373915859,1753151435577,-460.0,0.00017366,2]
[373915860,1753151435586,-463.32362564,0.00017366,2]
[373915861,1753151435596,-460.0,0.00017366,2]
[373915862,1753151435605,-462.34937141,0.00017366,2]
[373915863,1753151435615,-460.0,0.00017366,2]
[373915864,1753151435625,-462.95048974,0.00017366,2]
[373915865,1753151435634,-460.0,0.00017366,2]
[373915866,1753151435644,-460.0,0.00017366,2]
[373915867,1753151435653,-460.0,0.00017366,2]
[373915868,1753151435662,-460.0,0.00017366,2]
[373915869,1753151435671,-511.08460653,0.00017366,2]
[373915870,1753151435680,-460.0,0.00017366,2]
[373915871,1753151435690,-463.09392368,0.00017366,2]
[373915872,1753151435699,-465.29211304,0.00017366,2]
[373915873,1753151435709,-460.0,0.00017366,2]
[373915874,1753151435718,-461.77767574,0.00017366,2]
[373915875,1753151435728,-462.99603587,0.00017366,2]
[373915876,1753151435737,-460.0,0.00017366,2]
[373915877,1753151435746,-460.88144214,0.00017366,2]
[373915878,1753151435755,-465.39302363,0.00017366,2]
[373915879,1753151435764,-460.0,0.00017366,2]
[373915880,1753151435773,-507.81536062,0.00017366,2]
[373915881,1753151435782,-462.8377648,0.00017366,2]
[373915882,1753151435792,-460.0,0.00017366,2]
[373915883,1753151435801,-277.76934476,0.00017366,2]
[373915884,1753151435810,-524.24271691,0.00017366,2]
[373915885,1753151435819,-460.0,0.00017366,2]
[373915886,1753151435828,-378.59773304,0.00017366,2]
[373915887,1753151435837,-466.63960864,0.00017366,2]
[373915888,1753151435846,-460.0,0.00017366,2]
[373915889,1753151435856,-375.67660208,0.00017366,2]
[373915890,1753151435865,-462.40530779,0.00017366,2]
[373915891,1753151435876,-463.53253765,0.00017366,2]
[373915892,1753151435884,-462.93078835,0.00017366,2]
[373915893,1753151435894,-461.44190849,0.00017366,2]
[373915894,1753151435904,-460.0,0.00017366,2]
[373915895,1753151435914,-460.0,0.00017366,2]
[373915896,1753151435923,-460.0,0.00017366,2]
[373915897,1753151435932,-464.67984858,0.00017366,2]
[373915898,1753151435941,-460.0,0.00017366,2]
[373915899,1753151435950,-466.64719013,0.00017366,2]
[373915900,1753151435959,-462.98483469,0.00017366,2]
[373915901,1753151435969,-460.79721201,0.00017366,2]
[373915902,1753151435978,-460.0,0.00017366,2]
[373915903,1753151435987,-461.12172303,0.00017366,2]
[373915904,1753151435996,-460.0,0.00017366,2]
[373915905,1753151436006,-462.17943287,0.00017366,2]
[373915906,1753151436015,-500.0,0.00017366,2]
[373915907,1753151436025,-500.0,0.00017366,2]
[373915908,1753151436037,-460.0,0.00017366,2]
[373915909,1753151436047,-460.0,0.00017366,2]
[373915910,1753151436056,-460.0,0.00017366,2]
[373915911,1753151436065,-460.0,0.00017366,2]
[373915912,1753151436074,-461.93478225,0.00017366,2]
[373915913,1753151436087,-461.37617449,0.00017366,2]
[373915914,1753151436096,-462.30595275,0.00017366,2]
[373915915,1753151436106,-460.0,0.00017366,2]
[373915916,1753151436115,-460.0,0.00017366,2]
[373915917,1753151436126,-466.13235809,0.00017366,2]
[373915918,1753151436136,-370.30889643,0.00017366,2]
[373915919,1753151436145,-460.0,0.00017366,2]
[373915920,1753151436154,-460.0,0.00017366,2]
[373915921,1753151436164,-461.66080908,0.00017366,2]
[373915922,1753151436174,-460.0,0.00017366,2]
[373915923,1753151436183,-552.43678999,0.00017366,2]
[373915924,1753151436192,-460.0,0.00017366,2]
[373915925,1753151436202,-460.0,0.00017366,2]
[373915926,1753151436211,-460.88256386,0.00017366,2]
[373915927,1753151436219,-460.0,0.00017366,2]
[373915928,1753151436229,-460.0,0.00017366,2]
[373915929,1753151436238,-461.56110537,0.00017366,2]
[373915930,1753151436248,-460.0,0.00017366,2]
[373915931,1753151436257,-460.0,0.00017366,2]